bitfinex-derivatives/quotes_BTCF0:USTF0_20250422
["timestamp","ask_amount","ask_price","bid_price","bid_amount"]
[1745298553650,0.3608,88134.0,88133.0,0.1134626]
[1745298554148,0.3608,88134.0,88133.0,0.3054626]
[1745298554549,0.3608,88134.0,88133.0,0.3684626]
[1745298554751,0.3618,88134.0,88133.0,0.3684626]
[1745298555853,0.3608,88134.0,88133.0,0.3684626]
[1745298556042,0.3618,88134.0,88133.0,0.3684626]
[1745298559851,0.4752613,88134.0,88133.0,0.3684626]
[1745298561242,0.5081613,88134.0,88133.0,0.3684626]
[1745298561443,0.5081613,88134.0,88133.0,0.3378426]
[1745298561846,0.5081613,88134.0,88133.0,0.3377626]
[1745298562054,0.5081613,88134.0,88133.0,0.3378426]
[1745298562255,0.5386613,88134.0,88133.0,0.3378426]
[1745298563360,0.5081613,88134.0,88133.0,0.3378426]
[1745298572253,0.1473613,88134.0,88133.0,0.3378426]
[1745298572455,0.5081613,88134.0,88133.0,0.3378426]
[1745298573763,0.5071613,88134.0,88133.0,0.3378426]
[1745298573962,0.3947,88134.0,88133.0,0.3378426]
[1745298574163,0.5081613,88134.0,88133.0,0.3378426]
[1745298574360,0.5091613,88134.0,88133.0,0.3378426]
[1745298574561,0.5081613,88134.0,88133.0,0.3378426]
[1745298574761,0.5091613,88134.0,88133.0,0.3378426]
[1745298578363,0.5091613,88134.0,88133.0,0.35315709]
[1745298582668,0.5081613,88134.0,88133.0,0.35315709]
[1745298583476,0.5071613,88134.0,88133.0,0.35333079]
[1745298584670,0.5400613,88134.0,88133.0,0.35333079]
[1745298585272,0.5400613,88134.0,88133.0,0.35332005]
[1745298587273,0.5400613,88134.0,88133.0,0.35331698]
[1745298587974,0.62642861,88134.0,88133.0,0.35331698]
[1745298590478,0.62642861,88134.0,88133.0,0.38621698]
[1745298590871,0.62642861,88134.0,88133.0,0.38632635]
[1745298592769,0.5400613,88134.0,88133.0,0.3862882]
[1745298594477,0.1792613,88134.0,88133.0,0.3862882]
[1745298594777,0.5400613,88134.0,88133.0,0.3863359]
[1745298595480,0.4266,88134.0,88133.0,0.3863359]
[1745298595668,0.5400613,88134.0,88133.0,0.3863359]
[1745298596377,0.5400613,88134.0,88133.0,0.38674751]
[1745298598777,0.3937,88134.0,88133.0,0.38674751]
[1745298598978,0.3608,88134.0,88133.0,0.38674751]
[1745298599181,0.00017019,88135.0,88134.0,0.1134613]
[1745298599474,0.1134463,88146.0,88141.0,0.1134523]
[1745298599673,0.0319,88148.0,88141.0,0.12945721]
[1745298599970,0.07188,88150.0,88141.0,0.12945721]
[1745298600171,0.07188,88150.0,88141.0,0.32132262]
[1745298600368,0.07188,88150.0,88141.0,0.38542262]
[1745298600564,0.07205019,88150.0,88141.0,0.38542262]
[1745298602273,0.08640243,88147.0,88146.0,0.0567223]
[1745298602572,0.08640243,88147.0,88146.0,0.24763842]
[1745298602878,0.44984693,88147.0,88146.0,0.01587032]
[1745298603076,0.44984693,88147.0,88146.0,0.20795032]
[1745298603378,0.44984693,88147.0,88146.0,0.192]
[1745298603576,0.44984693,88147.0,88146.0,0.19208]
[1745298603776,0.48284693,88147.0,88146.0,0.19208]
[1745298604178,0.48284693,88147.0,88146.0,8e-05]
[1745298604576,0.48484693,88147.0,88146.0,8e-05]
[1745298604779,0.48484693,88147.0,88146.0,0.1135258]
[1745298604982,0.48684693,88147.0,88146.0,0.1135258]
[1745298605277,0.60029493,88147.0,88146.0,0.1135258]
[1745298605467,0.1134484,88144.0,88143.0,0.0567245]
[1745298605775,0.7142484,88144.0,88143.0,0.0567245]
[1745298606170,0.7142484,88144.0,88143.0,0.2487245]
[1745298606578,0.7172484,88144.0,88143.0,0.2487245]
[1745298609278,0.80359127,88144.0,88143.0,0.2487245]
[1745298610280,0.87547127,88144.0,88143.0,0.2487245]
[1745298611281,0.93219607,88144.0,88143.0,0.1134497]
[1745298611785,1.29299607,88144.0,88143.0,0.1134497]
[1745298612679,1.05299607,88144.0,88143.0,0.1134497]
[1745298612882,1.08185645,88144.0,88143.0,0.1134497]
[1745298613183,1.31185645,88144.0,88143.0,0.1134497]
[1745298613681,1.08185645,88144.0,88143.0,0.1134497]
[1745298614082,1.36185645,88144.0,88143.0,0.3054497]
[1745298614986,0.64025645,88144.0,88143.0,0.3054497]
[1745298615180,1.36185645,88144.0,88143.0,0.3054497]
[1745298615977,1.08185645,88144.0,88143.0,0.3054497]
[1745298616178,0.9666532,88144.0,88143.0,0.3054497]
[1745298616380,1.2266532,88144.0,88143.0,0.3054497]
[1745298617284,1.2266532,88144.0,88143.0,0.1134497]
[1745298618677,0.9666532,88144.0,88143.0,0.1134497]
[1745298618875,1.2466532,88144.0,88143.0,0.1134497]
[1745298621278,1.2466532,88144.0,88143.0,0.3054497]
[1745298621986,0.9666532,88144.0,88143.0,0.3054497]
[1745298622381,1.2166532,88144.0,88143.0,0.3054497]
[1745298622584,0.4950532,88144.0,88143.0,0.3054497]
[1745298622780,0.8558532,88144.0,88143.0,0.3054497]
[1745298623789,0.97100179,88144.0,88143.0,0.3054497]
[1745298624491,0.72100179,88144.0,88143.0,0.3054497]
[1745298624684,0.96100179,88144.0,88143.0,0.3054497]
[1745298624881,0.72100179,88144.0,88143.0,0.3054497]
[1745298625586,0.36020179,88144.0,88143.0,0.3054497]
[1745298625794,0.72100179,88144.0,88143.0,0.3054497]
[1745298627587,0.6058532,88144.0,88143.0,0.3054497]
[1745298630991,0.2450532,88144.0,88143.0,0.3054497]
[1745298631185,0.6058532,88144.0,88143.0,0.3054497]
[1745298631390,0.8758532,88144.0,88143.0,0.3054497]
[1745298633689,0.6058532,88144.0,88143.0,0.3054497]
[1745298633883,0.8458532,88144.0,88143.0,0.3054497]
[1745298634089,0.8458532,88144.0,88143.0,0.192]
[1745298634289,0.8658532,88144.0,88143.0,0.192]
[1745298635190,0.922578,88144.0,88143.0,0.1134497]
[1745298635495,0.0567261,88142.0,88139.0,0.000108]
[1745298635702,0.1134535,88140.0,88139.0,0.000108]
[1745298635892,0.0567301,88135.0,88123.0,0.00017019]
[1745298636097,0.0567301,88135.0,88124.0,0.1469199]
[1745298636098,0.1134729,88125.0,88124.0,0.1469199]
[1745298636401,0.3434729,88125.0,88124.0,0.1467741]
[1745298636703,0.3434729,88125.0,88124.0,0.1468541]
[1745298637401,0.4093729,88125.0,88124.0,0.1478541]
[1745298638107,0.4103729,88125.0,88124.0,0.1468541]
[1745298639001,0.4113729,88125.0,88124.0,0.1468541]
[1745298639700,0.4113729,88125.0,88124.0,0.16210734]
[1745298640299,0.4113729,88125.0,88124.0,0.1468541]
[1745298640704,0.1813729,88125.0,88124.0,0.1468541]
[1745298641102,0.4313729,88125.0,88124.0,0.1468541]
[1745298644297,0.1813729,88125.0,88124.0,0.1468541]
[1745298646310,0.1813729,88125.0,88124.0,0.19208]
[1745298646311,0.7432489,88125.0,88124.0,0.19208]
[1745298646911,0.8143689,88125.0,88124.0,0.22298]
[1745298647113,0.5124929,88125.0,88124.0,0.1444541]
[1745298647316,0.1813729,88125.0,88124.0,0.03098]
[1745298647499,0.4313729,88125.0,88124.0,8e-05]
[1745298647703,0.5024929,88125.0,88124.0,8e-05]
[1745298647913,0.1134741,88124.0,88123.0,0.00017019]
[1745298648109,0.3634741,88124.0,88123.0,0.00017019]
[1745298648309,0.4280741,88124.0,88123.0,0.00017019]
[1745298649304,0.4300741,88124.0,88123.0,0.00017019]
[1745298649808,0.4310741,88124.0,88123.0,0.00017019]
[1745298650611,0.4310741,88124.0,88123.0,0.00025019]
[1745298651314,0.6194741,88124.0,88123.0,0.00025019]
[1745298651611,0.4310741,88124.0,88123.0,0.00025019]
[1745298651906,0.3621941,88124.0,88123.0,0.00025019]
[1745298652506,0.4921941,88124.0,88123.0,0.00017019]
[1745298652706,0.4210741,88124.0,88123.0,0.00025019]
[1745298652906,0.2521941,88124.0,88123.0,0.00025019]
[1745298653109,0.5321941,88124.0,88123.0,0.19225019]
[1745298658316,0.61838235,88124.0,88123.0,0.19225019]
[1745298661107,1.02788235,88124.0,88123.0,0.00025019]
[1745298661315,1.02788235,88124.0,88123.0,9e-08]
[1745298661922,0.1134793,88120.0,88119.0,0.00170219]
[1745298662122,0.9362793,88120.0,88119.0,0.00170219]
[1745298662518,0.9362793,88120.0,88119.0,0.00178219]
[1745298662719,1.4072793,88120.0,88119.0,0.00178219]
[1745298662922,1.4072793,88120.0,88119.0,0.00170219]
[1745298663119,1.4072793,88120.0,88119.0,0.00178219]
[1745298663523,1.4082793,88120.0,88119.0,0.00178219]
[1745298663822,1.4082793,88120.0,88112.0,0.00510711]
[1745298663823,0.1134883,88113.0,88112.0,0.00510711]
[1745298664121,1.1537883,88113.0,88112.0,0.19710711]
[1745298664725,1.2146883,88113.0,88112.0,0.19710711]
[1745298665021,1.3281803,88113.0,88112.0,0.19810711]
[1745298666024,1.2146883,88113.0,88112.0,0.19810711]
[1745298666219,0.9138883,88113.0,88112.0,0.29490711]
[1745298666419,0.9849683,88113.0,88112.0,0.29490711]
[1745298666621,1.2349683,88113.0,88112.0,0.29490711]
[1745298667529,1.28188685,88113.0,88112.0,0.29490711]
[1745298668237,1.28188685,88113.0,88112.0,0.10290711]
[1745298669127,1.28188685,88113.0,88112.0,0.22960711]
[1745298669329,1.39537885,88113.0,88112.0,0.19810711]
[1745298669524,1.39537885,88113.0,88112.0,1e-08]
[1745298669729,0.1134896,88112.0,88111.0,1e-07]
[1745298669924,0.5692816,88112.0,88111.0,1e-07]
[1745298670125,0.6003816,88112.0,88111.0,0.1920001]
[1745298670923,0.7887816,88112.0,88111.0,0.1920001]
[1745298671129,0.7887816,88112.0,88111.0,0.1920801]
[1745298672433,0.7887816,88112.0,88111.0,0.1930801]
[1745298675340,1.1982816,88112.0,88111.0,0.1930801]
[1745298675834,1.1982816,88112.0,88111.0,0.1930001]
[1745298676040,1.1982816,88112.0,88111.0,0.1930801]
[1745298680937,1.1982816,88112.0,88111.0,0.1179519]
[1745298681839,0.1135038,88101.0,88098.0,0.0317]
[1745298682029,0.7043038,88101.0,88098.0,0.031808]
[1745298682229,0.7043038,88101.0,88100.0,0.292]
[1745298682743,0.7700038,88101.0,88100.0,0.292]
[1745298683442,0.7700038,88101.0,88100.0,0.293]
[1745298683737,0.7710038,88101.0,88100.0,0.295]
[1745298684131,1.1318038,88101.0,88100.0,0.295]
[1745298686141,1.3202038,88101.0,88100.0,0.295]
[1745298686345,0.5986038,88101.0,88100.0,0.295]
[1745298686543,1.3202038,88101.0,88100.0,0.295]
[1745298687044,1.7297038,88101.0,88100.0,0.295]
[1745298687341,1.6640038,88101.0,88100.0,0.295]
[1745298687548,1.7350838,88101.0,88100.0,0.295]
[1745298692246,0.1135218,88087.0,88086.0,0.00510861]
[1745298692545,0.7762018,88087.0,88086.0,0.00510861]
[1745298693347,0.7762018,88087.0,88086.0,0.19710861]
[1745298693547,0.78860061,88087.0,88086.0,0.20310861]
[1745298693746,0.7772018,88087.0,88086.0,0.20310861]
[1745298696041,0.7772018,88087.0,88086.0,0.26770861]
[1745298703053,1.0291018,88087.0,88086.0,0.23570861]
[1745298703755,1.0621018,88087.0,88086.0,0.23578861]
[1745298704340,1.0291018,88087.0,88086.0,0.23578861]
[1745298704546,1.0291018,88087.0,88086.0,0.23570861]
[1745298704856,1.0291018,88087.0,88086.0,0.23578861]
[1745298705151,1.0291018,88087.0,88086.0,0.23278861]
[1745298705754,1.0281018,88087.0,88086.0,0.23078861]
[1745298705954,1.0291018,88087.0,88086.0,0.23278861]
[1745298707550,1.4386018,88087.0,88086.0,0.23278861]
[1745298709355,1.48553225,88087.0,88086.0,0.23278861]
[1745298710849,1.48553225,88087.0,88086.0,0.20018861]
[1745298713758,1.4386418,88087.0,88086.0,0.20018861]
[1745298713950,1.4386418,88087.0,88086.0,0.20010861]
[1745298714150,1.4386418,88087.0,88086.0,0.20018861]
[1745298715353,1.4386418,88087.0,88086.0,0.20010861]
[1745298715550,1.4386418,88087.0,88086.0,0.20018861]
[1745298715950,1.4386418,88087.0,88086.0,0.20010861]
[1745298716146,1.4386418,88087.0,88086.0,0.20018861]
[1745298716351,1.4416418,88087.0,88086.0,0.19918861]
[1745298717357,1.4436418,88087.0,88086.0,0.19718861]
[1745298723059,1.49057522,88087.0,88086.0,0.19718861]
[1745298726758,1.60409922,88087.0,88086.0,0.19718861]
[1745298727372,1.60409922,88087.0,88086.0,0.19710861]
[1745298727755,1.60409922,88087.0,88086.0,0.19718861]
[1745298732663,1.60109922,88087.0,88086.0,0.19718861]
[1745298732874,1.60409922,88087.0,88086.0,0.19718861]
[1745298733758,1.60109922,88087.0,88086.0,0.19718861]
[1745298733958,1.60309922,88087.0,88086.0,0.19718861]
[1745298736859,1.60309922,88087.0,88086.0,0.19710861]
[1745298737064,1.60309922,88087.0,88086.0,0.19718861]
[1745298740379,0.0567707,88072.0,88051.0,0.1135676]
[1745298740566,0.113554,88062.0,88061.0,0.0303]
[1745298740764,0.353554,88062.0,88061.0,0.0303]
[1745298740971,0.353554,88062.0,88061.0,0.2803]
[1745298741168,0.353554,88062.0,88061.0,0.4723]
[1745298742277,0.353554,88062.0,88061.0,0.4733]
[1745298742473,0.354554,88062.0,88061.0,0.4733]
[1745298743274,0.354554,88062.0,88061.0,0.2233]
[1745298743673,0.114554,88062.0,88061.0,0.2872]
[1745298744679,0.475354,88062.0,88061.0,0.2872]
[1745298748577,0.114554,88062.0,88061.0,0.2872]
[1745298748881,0.475354,88062.0,88061.0,0.2872]
[1745298750183,0.114554,88062.0,88061.0,0.2872]
[1745298750574,0.475354,88062.0,88061.0,0.2872]
[1745298753282,0.715354,88062.0,88061.0,0.2872]
[1745298755282,0.72663985,88062.0,88061.0,0.2872]
[1745298756080,0.72663985,88062.0,88061.0,0.28728]
[1745298756683,0.72663985,88062.0,88061.0,0.19308]
[1745298756881,0.72663985,88062.0,88061.0,0.193]
[1745298757185,0.72663985,88062.0,88061.0,0.19308]
[1745298757380,0.91503985,88062.0,88061.0,0.19308]
[1745298757572,1.09119585,88062.0,88061.0,0.19308]
[1745298758075,0.97763985,88062.0,88061.0,0.19308]
[1745298760382,1.38713985,88062.0,88061.0,0.19308]
[1745298760972,1.19873985,88062.0,88061.0,0.19308]
[1745298762081,1.24568711,88062.0,88061.0,0.19308]
[1745298762688,1.54764311,88062.0,88061.0,0.19308]
[1745298762903,1.54764311,88062.0,88044.0,0.0632]
[1745298762904,0.0567911,88041.0,88010.0,0.0568105]
[1745298763189,0.4743889,88035.0,88034.0,0.19711163]
[1745298763382,0.7056289,88035.0,88034.0,0.19711163]
[1745298763584,0.7714289,88035.0,88034.0,0.19719163]
[1745298764078,0.7714289,88035.0,88034.0,0.19819163]
[1745298764887,0.78298347,88035.0,88034.0,0.19819163]
[1745298765089,0.78398347,88035.0,88034.0,0.19819163]
[1745298769383,0.78398347,88035.0,88034.0,0.19811163]
[1745298769583,0.78398347,88035.0,88034.0,0.19819163]
[1745298769988,0.78398347,88035.0,88034.0,0.19811163]
[1745298770581,0.78398347,88035.0,88034.0,0.19819163]
[1745298770887,1.05841738,88035.0,88034.0,0.19819163]
[1745298771189,0.87001738,88035.0,88034.0,0.19819163]
[1745298772392,0.85846281,88035.0,88034.0,0.19819163]
[1745298772985,0.86962241,88035.0,88034.0,0.19819163]
[1745298774589,0.85846281,88035.0,88034.0,0.19819163]
[1745298774788,0.85946281,88035.0,88034.0,0.19819163]
[1745298774988,0.78584451,88035.0,88034.0,0.19719163]
[1745298776498,0.6144289,88035.0,88034.0,0.19719163]
[1745298776687,0.43508,88035.0,88034.0,0.42437383]
[1745298776888,0.3638,88035.0,88034.0,0.42437383]
[1745298777085,0.4773889,88035.0,88034.0,0.42437383]
[1745298777589,0.4773889,88035.0,88034.0,0.48757383]
[1745298781695,0.1138428,88040.0,88039.0,0.1135837]
[1745298781891,0.43208,88050.0,88045.0,0.113576]
[1745298782287,0.4743701,88050.0,88045.0,0.227152]
[1745298782493,0.3608,88050.0,88045.0,0.227152]
[1745298782895,0.4175852,88050.0,88045.0,0.227152]
[1745298783094,0.19960531,88049.0,88045.0,0.224152]
[1745298783287,0.19960531,88049.0,88045.0,0.416152]
[1745298783487,0.08603391,88049.0,88045.0,0.416152]
[1745298783691,0.4743699,88050.0,88045.0,0.416152]
[1745298783891,0.00117029,88046.0,88045.0,0.416152]
[1745298789300,0.11474499,88046.0,88045.0,0.416152]
[1745298789598,0.00117029,88046.0,88045.0,0.416152]
[1745298790794,0.11474499,88046.0,88045.0,0.416152]
[1745298795502,0.00117029,88046.0,88045.0,0.416152]
[1745298798100,0.00117029,88046.0,88045.0,0.516152]
[1745298798297,0.0303,88052.0,88051.0,0.1135682]
[1745298798804,0.0303,88052.0,88051.0,0.2271362]
[1745298799206,0.0303,88052.0,88051.0,0.4810362]
[1745298799606,0.0303,88052.0,88051.0,0.4820362]
[1745298799806,0.0313,88052.0,88051.0,0.4820362]
[1745298802204,0.0628,88052.0,88051.0,0.4820362]
[1745298804211,0.1763669,88052.0,88051.0,0.4820362]
[1745298804604,0.1763669,88052.0,88051.0,0.4519362]
[1745298806513,0.1763669,88052.0,88051.0,0.3383682]
[1745298806810,0.1763669,88052.0,88051.0,0.4519362]
[1745298807712,0.1763669,88052.0,88051.0,0.4201362]
[1745298808709,0.1763669,88052.0,88051.0,0.3065682]
[1745298808918,0.1763669,88052.0,88051.0,0.3066482]
[1745298827020,0.1763669,88052.0,88051.0,0.19308]
[1745298827327,0.1763669,88052.0,88051.0,0.3065682]
[1745298827622,0.1763669,88052.0,88051.0,0.3066482]
[1745298827819,0.29130095,88052.0,88051.0,0.3066482]
[1745298832025,0.1763669,88052.0,88051.0,0.3066482]
[1745298833630,0.1763669,88052.0,88051.0,0.18864971]
[1745298833921,0.1963669,88052.0,88051.0,0.18856971]
[1745298834121,0.1963669,88052.0,88051.0,0.18864971]
[1745298835825,0.1963669,88052.0,88051.0,0.18856971]
[1745298836225,0.1963669,88052.0,88051.0,0.18864971]
[1745298839925,0.2678069,88052.0,88051.0,0.18864971]
[1745298840234,0.38274095,88052.0,88051.0,0.18864971]
[1745298842022,0.57134095,88052.0,88051.0,0.18864971]
[1745298842833,1.29294095,88052.0,88051.0,0.18864971]
[1745298843534,1.1780069,88052.0,88051.0,0.18864971]
[1745298848424,0.9894069,88052.0,88051.0,0.18864971]
[1745298848931,0.9179669,88052.0,88051.0,0.18864971]
[1745298849136,0.8979669,88052.0,88051.0,0.18864971]
[1745298849630,0.8979669,88052.0,88051.0,0.30221791]
[1745298850831,0.8979669,88052.0,88051.0,0.33221791]
[1745298852136,1.0865669,88052.0,88051.0,0.33221791]
[1745298852636,0.8979669,88052.0,88051.0,0.33221791]
[1745298853934,0.98422103,88052.0,88051.0,0.33221791]
[1745298855638,0.98422103,88052.0,88051.0,0.30221791]
[1745298856337,1.25422103,88052.0,88051.0,0.30221791]
[1745298857539,1.28297241,88052.0,88051.0,0.30221791]
[1745298860742,1.1679669,88052.0,88051.0,0.30221791]
[1745298860942,1.1679669,88052.0,88051.0,0.18864971]
[1745298861339,1.1679669,88052.0,88051.0,0.18856971]
[1745298861642,1.1679669,88052.0,88051.0,0.18864971]
[1745298862143,1.3565669,88052.0,88051.0,0.18864971]
[1745298863341,1.3555669,88052.0,88051.0,0.18864971]
[1745298863529,1.3565669,88052.0,88051.0,0.18864971]
[1745298864642,1.40351406,88052.0,88051.0,0.18864971]
[1745298866841,1.40351406,88052.0,88051.0,0.18856971]
[1745298867039,1.3565669,88052.0,88051.0,0.18856971]
[1745298867239,1.3565669,88052.0,88051.0,0.18864971]
[1745298878951,1.7201349,88052.0,88051.0,0.18864971]
[1745298879152,1.7201349,88052.0,88051.0,0.18856971]
[1745298879342,1.7201349,88052.0,88051.0,0.18864971]
[1745298879542,1.7201349,88052.0,88051.0,0.18856971]
[1745298879747,1.7201349,88052.0,88051.0,0.18864971]
[1745298879947,1.4701349,88052.0,88051.0,0.18864971]
[1745298883347,1.8796349,88052.0,88051.0,0.18864971]
[1745298885160,1.8796349,88052.0,88043.0,0.00017039]
[1745298885463,0.1135824,88040.0,88039.0,0.000108]
[1745298885664,0.7855024,88040.0,88039.0,0.000108]
[1745298886163,0.7855024,88040.0,88039.0,0.192108]
[1745298886462,0.8479024,88040.0,88039.0,0.192108]
[1745298887161,0.8479024,88040.0,88039.0,0.193108]
[1745298887358,0.8489024,88040.0,88039.0,0.195108]
[1745298887560,0.8489024,88040.0,88039.0,0.194108]
[1745298887760,0.8499024,88040.0,88039.0,0.194108]
[1745298888063,0.8499024,88040.0,88039.0,0.192108]
[1745298888265,0.86154249,88040.0,88039.0,0.192108]
[1745298888564,1.05014249,88040.0,88039.0,0.192108]
[1745298888955,1.05014249,88040.0,88039.0,0.192]
[1745298889156,1.16372649,88040.0,88039.0,0.19208]
[1745298889656,1.09260649,88040.0,88039.0,0.19208]
[1745298889860,1.16372649,88040.0,88039.0,0.19208]
[1745298892264,1.57322649,88040.0,88039.0,0.19208]
[1745298892859,1.45964249,88040.0,88039.0,0.19208]
[1745298894368,1.60322884,88040.0,88039.0,0.19208]
[1745298894863,1.53210884,88040.0,88039.0,0.19208]
[1745298895068,1.71681284,88040.0,88039.0,0.19208]
[1745298895368,1.71681284,88040.0,88039.0,0.192]
[1745298895667,1.71681284,88040.0,88039.0,0.19208]
[1745298897069,1.60322884,88040.0,88039.0,0.19208]
[1745298897263,1.60322884,88040.0,88039.0,0.0811946]
[1745298897462,1.71681284,88040.0,88039.0,0.0811146]
[1745298898067,0.3021889,88035.0,88018.0,0.0982]
[1745298898263,0.5821889,88035.0,88027.0,0.000108]
[1745298898570,0.6957809,88035.0,88027.0,0.000108]
[1745298898861,0.6957809,88035.0,88034.0,3e-08]
[1745298899063,0.7581809,88035.0,88034.0,0.19200003]
[1745298899268,0.7581809,88035.0,88034.0,0.19208003]
[1745298899665,0.7581809,88035.0,88034.0,0.19308003]
[1745298900355,0.7591809,88035.0,88034.0,0.19308003]
[1745298900566,0.7611809,88035.0,88034.0,0.19308003]
[1745298900866,0.5005089,88035.0,88034.0,0.19308003]
[1745298902962,0.54746941,88035.0,88034.0,0.19308003]
[1745298904768,0.73606941,88035.0,88034.0,0.09754553]
[1745298904967,0.79826941,88035.0,88034.0,0.09746553]
[1745298905161,0.79826941,88035.0,88034.0,0.09754553]
[1745298905657,0.7513089,88035.0,88034.0,0.09754553]
[1745298907470,0.7513089,88035.0,88034.0,0.03402843]
[1745298907471,0.8649009,88035.0,88034.0,0.03402843]
[1745298908570,0.7513089,88035.0,88034.0,0.03402843]
[1745298908770,0.7196089,88035.0,88034.0,0.03402843]
[1745298909770,1.1291089,88035.0,88034.0,0.03402843]
[1745298910072,1.0579889,88035.0,88034.0,0.03402843]
[1745298910272,1.1297889,88035.0,88034.0,0.03402843]
[1745298910880,1.0992889,88035.0,88034.0,0.03402843]
[1745298912175,1.0274889,88035.0,88034.0,0.03402843]
[1745298912476,0.8070889,88035.0,88034.0,0.03402843]
[1745298912679,0.8788889,88035.0,88034.0,0.03402843]
[1745298913280,0.92584679,88035.0,88034.0,0.03402843]
[1745298914180,0.85404679,88035.0,88034.0,0.03402843]
[1745298914479,0.92584679,88035.0,88034.0,0.03402843]
[1745298915880,0.51634679,88035.0,88034.0,0.03402843]
[1745298917685,0.4693889,88035.0,88034.0,0.03402843]
[1745298921277,0.61310059,88035.0,88034.0,0.03402843]
[1745298923884,0.54130059,88035.0,88034.0,0.03402843]
[1745298924091,0.61310059,88035.0,88034.0,0.14761863]
[1745298924387,0.26130059,88035.0,88034.0,0.26121063]
[1745298925085,0.26130059,88035.0,88034.0,0.32351063]
[1745298925688,0.1175889,88035.0,88034.0,0.32351063]
[1745298926080,0.1893889,88035.0,88034.0,0.03402843]
[1745298926374,0.2083889,88035.0,88034.0,0.03394843]
[1745298926573,0.1863889,88035.0,88034.0,0.03494843]
[1745298926984,0.1145889,88035.0,88034.0,0.14853863]
[1745298927179,0.1145889,88035.0,88034.0,0.18181863]
[1745298927380,0.1145889,88035.0,88034.0,0.18081863]
[1745298927591,0.1155889,88035.0,88034.0,0.06722843]
[1745298928175,0.1145889,88035.0,88034.0,0.06722843]
[1745298928679,0.1145889,88035.0,88034.0,0.18081863]
[1745298928874,0.1135889,88035.0,88034.0,0.18081863]
[1745298929075,0.1135889,88035.0,88034.0,0.18181863]
[1745298931583,0.1135889,88035.0,88034.0,0.29541063]
[1745298932184,0.1135889,88035.0,88034.0,0.18182043]
[1745298932384,0.1135889,88035.0,88034.0,0.29533063]
[1745298932591,0.1135889,88035.0,88034.0,0.18182043]
[1745298932786,0.1437889,88035.0,88034.0,0.18182043]
[1745298932998,0.1437889,88035.0,88034.0,0.29541063]
[1745298933182,0.1437889,88035.0,88034.0,0.18181863]
[1745298933489,0.1437889,88035.0,88034.0,0.03502843]
[1745298933787,0.1537889,88035.0,88034.0,0.03502843]
[1745298934387,0.1537889,88035.0,88034.0,0.03494843]
[1745298934388,0.1868889,88035.0,88034.0,0.03494843]
[1745298934594,0.1868889,88035.0,88034.0,0.03502843]
[1745298934786,0.1878889,88035.0,88034.0,0.03402843]
[1745298936897,0.1868889,88035.0,88034.0,0.03402843]
[1745298938289,0.2182889,88035.0,88034.0,0.03402843]
[1745298939196,0.1851889,88035.0,88034.0,0.03402843]
[1745298939787,0.4451889,88035.0,88034.0,0.03402843]
[1745298940992,0.1751889,88035.0,88034.0,0.03402843]
[1745298941497,0.1437889,88035.0,88034.0,0.14761863]
[1745298941699,0.1135889,88037.0,88036.0,0.1135855]
[1745298941887,0.1135863,88037.0,88036.0,0.17038]
[1745298942094,0.1135863,88037.0,88036.0,0.36238]
[1745298942491,0.1135863,88037.0,88036.0,0.2487932]
[1745298942786,0.1135863,88037.0,88036.0,0.192]
[1745298943009,0.1145863,88037.0,88036.0,0.192]
[1745298943691,0.1874863,88037.0,88036.0,0.192]
[1745298944094,0.1864863,88037.0,88036.0,0.19308]
[1745298944496,0.1864863,88037.0,88036.0,0.193]
[1745298944803,0.1864863,88037.0,88036.0,0.19308]
[1745298945191,0.1874863,88037.0,88036.0,0.19408]
[1745298946102,0.3760863,88037.0,88036.0,0.19308]
[1745298948097,0.3770863,88037.0,88036.0,0.19308]
[1745298948296,0.4240424,88037.0,88036.0,0.19308]
[1745298948592,0.4230424,88037.0,88036.0,0.19208]
[1745298948792,0.4240424,88037.0,88036.0,0.19308]
[1745298950197,0.4230424,88037.0,88036.0,0.19208]
[1745298950509,0.4240424,88037.0,88036.0,0.19308]
[1745298951001,0.4230424,88037.0,88036.0,0.19208]
[1745298951196,0.4230424,88037.0,88036.0,0.19308]
[1745298951396,0.4240424,88037.0,88036.0,0.19308]
[1745298952708,0.52083652,88037.0,88036.0,0.19308]
[1745298956812,0.17595022,88037.0,88036.0,0.3066789]
[1745298957209,0.14575022,88037.0,88036.0,0.4202669]
[1745298957706,0.002,88037.0,88036.0,0.4528669]
[1745298959002,0.1155977,88037.0,88036.0,0.4528669]
[1745298959404,0.1145977,88037.0,88036.0,0.4548669]
[1745298959604,0.1145977,88037.0,88036.0,0.4558669]
[1745298960404,0.1145977,88037.0,88036.0,0.4538669]
[1745298960604,0.1145977,88037.0,88036.0,0.3422789]
[1745298962408,0.1145977,88037.0,88036.0,0.22868]
[1745298962612,0.1781977,88037.0,88036.0,0.19608]
[1745298962909,0.1781977,88037.0,88036.0,0.196]
[1745298963107,0.4481977,88037.0,88036.0,0.19608]
[1745298963903,0.4481977,88037.0,88036.0,0.196]
[1745298964104,0.4481977,88037.0,88036.0,0.19608]
[1745298964911,0.4481977,88037.0,88036.0,0.3096789]
[1745298965706,0.4471977,88037.0,88036.0,0.3056789]
[1745298965904,0.4481977,88037.0,88036.0,0.3076789]
[1745298966311,0.6367977,88037.0,88036.0,0.3066789]
[1745298966520,0.4471977,88037.0,88036.0,0.3066789]
[1745298966815,0.4481977,88037.0,88036.0,0.3076789]
[1745298967315,0.4471977,88037.0,88036.0,0.3066789]
[1745298967518,0.4481977,88037.0,88036.0,0.3076789]
[1745298967918,0.4481977,88037.0,88036.0,0.19408]
[1745298968714,0.4471977,88037.0,88036.0,0.19308]
[1745298969020,0.4481977,88037.0,88036.0,0.19408]
[1745298969519,0.4471977,88037.0,88036.0,0.19308]
[1745298969817,0.4481977,88037.0,88036.0,0.19408]
[1745298971805,1.1697977,88037.0,88036.0,0.19408]
[1745298973319,1.1697977,88037.0,88036.0,0.194]
[1745298973619,1.1697977,88037.0,88036.0,0.19408]
[1745298975810,1.1697977,88037.0,88036.0,0.19308]
[1745298976116,1.28707426,88037.0,88036.0,0.19308]
[1745298976308,1.28807426,88037.0,88036.0,0.19408]
[1745298976507,1.47667426,88037.0,88036.0,0.19408]
[1745298977607,1.14407656,88037.0,88036.0,0.3076789]
[1745298977810,0.99767426,88037.0,88036.0,0.3076789]
[1745298978021,0.80275656,88037.0,88036.0,0.3076789]
[1745298978217,0.91635426,88037.0,88036.0,0.3076789]
[1745298978414,0.80275656,88037.0,88036.0,0.3711789]
[1745298978611,0.91635426,88037.0,88036.0,0.3711789]
[1745298979014,0.91535426,88037.0,88036.0,0.3701789]
[1745298979216,0.91635426,88037.0,88036.0,0.19408]
[1745298979411,0.91635426,88037.0,88036.0,0.194]
[1745298979616,0.91635426,88037.0,88036.0,0.3076789]
[1745298980517,0.8693977,88037.0,88036.0,0.3382789]
[1745298985021,1.01315026,88037.0,88036.0,0.3382789]